Cogmind - Beta 15 @@@ ROGUE MODE // 2025.06.13 @ 04:42:14 Player: Storm Mk9 Result: Destroyed by Y7-M0V(R) with Subdweller Machine Gun Performance ------------- Evolutions (0) 0 Regions Visited (3) 600 Robots Destroyed (16) 80 Value Destroyed (472) 472 Prototype IDs (2) 40 Alien Tech Used (0) 0 Bonus (0) 0 TOTAL SCORE: 1192 Bonus ------- None Cogmind --------- Core Integrity 0/250 Matter 282/300 Energy 100/100 System Corruption 0% Temperature Cool (0) Movement Walking (260) Ox2 Location -10/Subcaves Parts ------- > --- POWER (1) -------- (None) > --- PROPULSION (2) --- Aluminum Leg > --- UTILITY (2) ------ Large Storage Unit Structural Scanner > --- WEAPON (2) ------- Light Assault Rifle Light Assault Rifle > --- INVENTORY (15) --- SUBCON Basin (Full) Peak State ------------ > --- POWER ------------ Light Ion Engine > --- PROPULSION ------- Light Treads Aluminum Leg > --- UTILITY ---------- Large Storage Unit Structural Scanner > --- WEAPON ----------- Assault Rifle Light Assault Rifle > --- INVENTORY -------- SUBCON Basin [Rating: 25] Favorites ----------- Power Light Ion Engine Engine Light Ion Engine Propulsion Light Treads Treads Light Treads Leg Aluminum Leg Utility Large Storage Unit Device Structural Scanner Storage Large Storage Unit Protection Core Shielding Weapon Assault Rifle Ballistic Gun Assault Rifle Impact Weapon Hammer Build | -11 -10 -10 -10 ------- Run | Yrd Mat Min Sub Slots Evolved . | . . . . Power . | . . . . Propulsion . | . . . . Utility . | . . . . Weapon . | . . . . Parts Attached 14 | 5 6 2 1 Power 2 | 1 1 . . Engine 2 | 1 1 . . Core . | . . . . Reactor . | . . . . Propulsion 3 | 2 1 . . Treads 2 | 2 . . . Leg 1 | . 1 . . Wheel . | . . . . Hover . | . . . . Flight . | . . . . Utility 4 | 1 2 1 . Device 1 | . . 1 . Storage 2 | 1 1 . . Processor . | . . . . Hackware . | . . . . Protection 1 | . 1 . . Artifact . | . . . . Weapon 5 | 1 2 1 1 Energy Gun . | . . . . Energy Cannon . | . . . . Ballistic Gun 4 | 1 1 1 1 Ballistic Cannon . | . . . . Launcher . | . . . . Special Weapon . | . . . . Impact Weapon 1 | . 1 . . Slashing Weapon . | . . . . Piercing Weapon . | . . . . Special Melee Weapon . | . . . . Unidentified Prototypes . | . . . . Parts Lost 5 | . 2 1 2 Power 2 | . 1 . 1 Propulsion 2 | . 1 . 1 Utility . | . . . . Weapon 1 | . . 1 . Highest Loss Streak 2 | . 1 1 2 To Critical Strikes . | . . . . Average Backups 7 | 2 6 11 4 Power 1 | 1 1 1 . Propulsion . | . . . . Utility 2 | . . 4 2 Weapon 3 | 1 4 5 2 Tool/Special . | . . . . Unused Backups 9 | . . . 9 Power 2 | . . . 2 Propulsion . | . . . . Utility 4 | . . . 4 Weapon 3 | . . . 3 Tool/Special . | . . . . Average Slot Usage (%) 99 | . 99 100 99 Engine 13 | . 14 14 13 Treads 18 | . 25 14 13 Leg 9 | . 2 14 14 Device 6 | . . 7 14 Storage 14 | . 14 14 14 Protection 6 | . 13 6 . Ballistic Gun 27 | . 27 28 28 Peak Build Rating 25 | 5 8 8 25 Average Rating 10 | 3 7 8 17 On Entrance 5 | . 5 8 8 Naked Turns . | . . . . Heaviest Build 28 | 12 28 28 27 Greatest Support 40 | 40 40 20 20 Greatest Overweight (x) 2 | . 2 1 1 Average Overweight (x) . | . . 1 1 Largest Inventory Capacity 15 | 8 15 15 15 Average Capacity 13 | 7 11 15 15 Most Carried 15 | 5 10 13 15 Average Carried 10 | 2 6 11 13 Final Capacity 15 | 8 15 15 15 Final Carried 15 | 3 10 12 15 Class Distribution -------------------- 100% | Mutant Dominant Class ---------------- Mutant | -10/Materials Mutant | -10/Mines Mutant | -10/Subcaves Resources | -11 -10 -10 -10 ----------- Run | Yrd Mat Min Sub Matter Collected 599 | 206 264 95 34 Remotely . | . . . . Salvage Created 622 | . 426 101 95 Parts 41 | . 32 3 6 Haulers Intercepted 1 | . 1 . . Recyclers Shooed . | . . . . Parts Field Recycled . | . . . . Retrieved Matter . | . . . . Parts Self-Destructed 11 | . . . 11 Prevented . | . . . . Kills | -11 -10 -10 -10 ------- Run | Yrd Mat Min Sub Combat Hostiles Destroyed 14 | . 10 2 2 Guns 14 | . 10 2 2 Classes Destroyed 4 | . 4 . . Worker 1 | . 1 . . Hauler 1 | . 1 . . Swarmer 3 | . 3 . . Grunt 11 | . 7 2 2 Best Kill Streak 4 | . 4 1 2 Combat Bots Only 3 | . 3 1 2 Max Kills in Single Turn 1 | . 1 1 1 Gunslinging . | . . . . Exploded . | . . . . Melee . | . . . . Uniques/NPCs Destroyed . | . . . . Combat | -11 -10 -10 -10 -------- Run | Yrd Mat Min Sub Hostile Shots Fired 117 | . 61 17 39 Missed 39 | . 16 9 14 Hits 78 | . 45 8 25 Projectile 78 | . 45 8 25 Critical Strikes 2 | . 2 . . Damage Taken 994 | . 501 118 375 Core 261 | . 41 72 148 Absorbed by Shields . | . . . . Redirected to Shielding 8 | . 8 . . Core Remaining (%) 100 | 100 . . . Volleys Fired 65 | . 30 12 23 Largest 2 | . 2 2 2 Hottest 40 | . 40 40 40 Shots Fired 130 | . 60 24 46 Gun 130 | . 60 24 46 Cannon . | . . . . Launcher . | . . . . Special . | . . . . Kinetic 130 | . 60 24 46 Thermal . | . . . . Explosive . | . . . . Electromagnetic . | . . . . Robot Hit Streak 15 | . 6 7 15 Robot Miss Streak 2 | . 2 1 1 Penetration Max . | . . . . Secondary Targets 2 | . 2 . . Max Gunslinging Chain 1 | . 1 . . Shots Hit Robots 101 | . 41 20 40 Core Hits 35 | . 20 6 9 Critical Kills . | . . . . Critical Parts Destroyed 1 | . . 1 . Critical Strikes 1 | . . 1 . Destroy 1 | . . 1 . Melee Attacks 2 | . 2 . . Impact 2 | . 2 . . Slashing . | . . . . Piercing . | . . . . Sneak Attacks . | . . . . Combat Hostiles . | . . . . Follow-up Attacks . | . . . . Damage Inflicted 1093 | . 535 226 332 Guns 1093 | . 535 226 332 Cannons . | . . . . Explosions . | . . . . Melee . | . . . . Ramming . | . . . . Kinetic 1093 | . 535 226 332 Thermal . | . . . . Explosive . | . . . . Electromagnetic . | . . . . Impact . | . . . . Slashing . | . . . . Piercing . | . . . . Highest Corruption . | . . . . Average Corruption . | . . . . Corruption Purged . | . . . . Corruption Blocked . | . . . . Overload Shots . | . . . . Overflow Damage . | . . . . Projectiles . | . . . . Explosions . | . . . . Melee . | . . . . Knockbacks . | . . . . Impact . | . . . . Kinetic . | . . . . Secondary . | . . . . Self-Inflicted Damage . | . . . . Shots . | . . . . Rammed . | . . . . Targets Rammed . | . . . . Kicked . | . . . . Crushed . | . . . . Highest Temperature 36 | . 36 9 . Average Temperature 12 | . 15 3 . Received Heat Transfer 459 | . 264 66 129 Siege Activations . | . . . . Martial Activations . | . . . . Shielding Activations . | . . . . Robots Disrupted . | . . . . Combat Hostiles . | . . . . Robots Corrupted . | . . . . Combat Hostiles . | . . . . Parts Fried . | . . . . Impact Corruptions . | . . . . Robots Melted . | . . . . Combat Hostiles . | . . . . Parts Melted . | . . . . Heat Transferred . | . . . . Parts Sabotaged . | . . . . Parts Stolen . | . . . . Parts Stripped . | . . . . Power Chain Reactions . | . . . . Alert | -11 -10 -10 -10 ------- Run | Yrd Mat Min Sub Maximum Alert Level . | . . . . Low Security (%) 100 | 100 100 100 . Level 1 . | . . . . Level 2 . | . . . . Level 3 . | . . . . Level 4 . | . . . . Level 5 . | . . . . High Security . | . . . . Max Security . | . . . . Peak Influence 95 | . 95 32 . Initial . | . . . . Average 15 | . 28 1 . Influence Increases 410 | . 305 55 50 Destroy 0b10 Robot/C 280 | . 200 40 40 Destroy 0b10 Robot/NC 10 | . 10 . . Destroy Leader 72 | . 52 10 10 Successful Hack 32 | . 27 5 . Destroy Structure 1 | . 1 . . Lose Combat Pursuer 15 | . 15 . . Influence Decreases 410 | . 305 55 50 Time Decay 390 | . 295 45 50 Lost Part 20 | . 10 10 . Squads Dispatched 2 | . 2 . . Investigation 1 | . 1 . . Extermination . | . . . . Reinforcement 1 | . 1 . . Assault . | . . . . Garrison . | . . . . Intercept . | . . . . Searches Triggered . | . . . . Construction Impeded . | . . . . Haulers Reinforced . | . . . . Active Scanning Responses . | . . . . Cargo Convoy Interrupts . | . . . . Stealth | -11 -10 -10 -10 --------- Run | Yrd Mat Min Sub Distress Signals 2 | . 2 . . Communications Jammed . | . . . . Distress Signals . | . . . . Times Spotted 26 | . 20 2 4 Peak Tracking Total 5 | . 5 2 2 Tactical Retreats 1 | . 1 . . Traps | -11 -10 -10 -10 ------- Run | Yrd Mat Min Sub Traps Triggered . | . . . . Indirectly . | . . . . Trap Hack Attempts . | . . . . Triggered . | . . . . Disarmed . | . . . . Reprogrammed . | . . . . Reused . | . . . . Traps Extracted . | . . . . Installed . | . . . . Triggered . | . . . . Machines | -11 -10 -10 -10 ---------- Run | Yrd Mat Min Sub Machines Disabled 1 | . 1 . . Max in Single Turn 1 | . 1 . . Machines Repaired . | . . . . Machines Dismantled . | . . . . Machines Sabotaged . | . . . . Overloaded Fab Kills . | . . . . Hacking | -11 -10 -10 -10 --------- Run | Yrd Mat Min Sub Machines Accessed 9 | . 6 1 2 Terminals 6 | . 5 1 . Fabricators . | . . . . Repair Stations 1 | . 1 . . Recycling Units . | . . . . Scanalyzers . | . . . . Garrison Access . | . . . . Total Hacks 32 | . 24 5 3 Successful 19 | . 12 4 3 Failed 12 | . 11 1 . Catastrophic 2 | . 2 . . Database Lockouts 1 | . 1 . . Manual 19 | . 18 1 . Terminals 26 | . 21 5 . Fabricators . | . . . . Repair Stations 3 | . 3 . . Recycling Units . | . . . . Scanalyzers . | . . . . Garrison Access . | . . . . Terminal Hacks 12 | . 5 4 3 Record 2 | . . 1 1 Robot Analysis 2 | . 1 1 . Prototype ID Bank 1 | . 1 . . Open Door 1 | . . . 1 Branch Access Points 1 | . 1 . . Alert Level 1 | . . 1 . Locate Traps 2 | . 2 . . Zone Layout 1 | . . 1 . Release Object 1 | . . . 1 Fabricator Hacks . | . . . . Repair Station Hacks 1 | . 1 . . Scan Component 1 | . 1 . . Recycling Unit Hacks . | . . . . Scanalyzer . | . . . . Garrison Access Hacks . | . . . . Unauthorized Hacks 6 | . 6 . . Terminals 6 | . 6 . . Track 3 | . 3 . . Botnet 2 | . 2 . . Operators 1 | . 1 . . Fabricators . | . . . . Repair Stations . | . . . . Recycling Units . | . . . . Scanalyzers . | . . . . Garrison Access . | . . . . Data Cores Recovered . | . . . . Used . | . . . . Hacking Detections 6 | . 6 . . Full Trace Events 1 | . 1 . . Feedback Events . | . . . . Feedback Blocked . | . . . . Robot Schematics Acquired . | . . . . Robots Built . | . . . . Authchips . | . . . . Time . | . . . . Total Robot Build Rating . | . . . . Part Schematics Acquired . | . . . . Parts Built . | . . . . Authchips . | . . . . Time . | . . . . Total Part Build Rating . | . . . . Parts Repaired . | . . . . Time . | . . . . Parts Recycled . | . . . . Recycled Matter . | . . . . Retrieved Matter . | . . . . Retrieved Components . | . . . . Parts Scanalyzed . | . . . . Part Schematics Acquired . | . . . . Parts Damaged . | . . . . Bothacking | -11 -10 -10 -10 ------------ Run | Yrd Mat Min Sub Used RIF Installer . | . . . . Robots Hacked . | . . . . Non-combat . | . . . . Combat . | . . . . Robot Hacks Applied . | . . . . Relay Couplers Released . | . . . . Fabnet Peak Effective % . | . . . . Robots Rewired . | . . . . Allies Hacked . | . . . . Hacks Repelled . | . . . . Allies | -11 -10 -10 -10 -------- Run | Yrd Mat Min Sub Total Allies . | . . . . Largest Group . | . . . . Highest-Rated Group . | . . . . Highest-Rated Ally . | . . . . Total Orders . | . . . . Ally Attacks . | . . . . Total Damage . | . . . . Kills . | . . . . Allies Corrupted . | . . . . Allies Melted . | . . . . Intel | -11 -10 -10 -10 ------- Run | Yrd Mat Min Sub Active Infowar (turns) 1492 | . . 532 960 Structural 1492 | . . 532 960 Robot Analysis Total 2 | . 1 1 . Derelict Logs Recovered 3 | . . 2 1 Drone Launches . | . . . . Drone Recoveries . | . . . . Exploration | -11 -10 -10 -10 ------------- Run | Yrd Mat Min Sub Turns Passed 3058 | 60 1104 934 960 Spaces Moved 1307 | 38 530 367 372 Core 11 | 11 . . . Treads 1223 | 27 457 367 372 Legs 73 | . 73 . . Wheels . | . . . . Hover . | . . . . Flight . | . . . . Fastest Speed 50 | 50 160 240 240 Average Speed 209 | 128 173 240 240 Slowest Speed 260 | 160 260 240 240 Overloaded Moves . | . . . . Propulsion Burnouts . | . . . . Robots Hopped . | . . . . Potential Cave-ins . | . . . . Cave-ins Triggered . | . . . . Exploration Rate (%) 38 | 4 62 67 21 Regions Visited 3 Branch Regions 2 Pre-discovered Areas 3 | . . 2 1 Known Exits Taken 1 | . 1 . . Unknown Exits Taken 2 | 1 . 1 . Scrap Searched 3 | . . 3 . Spaces Dug 1 | . 1 . . Terrain Destroyed 1 | . 1 . . Melee 1 | . 1 . . Projectile . | . . . . AOE . | . . . . Terrain Rammed . | . . . . Walls Destroyed . | . . . . Machines Disabled . | . . . . Actions | -11 -10 -10 -10 --------- Run | Yrd Mat Min Sub Total 1506 | 49 649 398 410 Wait 83 | . 68 15 . Move 1304 | 37 529 366 372 Hop . | . . . . Pick Up 23 | 7 12 3 1 Fast Attach 2 | 1 . . 1 Attach 9 | 4 4 1 . Detach . | . . . . Swap 4 | . 3 1 . Drop 14 | . 1 . 13 Fire 65 | . 30 12 23 Melee 2 | . 2 . . Ram . | . . . . Kick . | . . . . Crush . | . . . . Escape Stasis . | . . . . Rewire . | . . . . Trap . | . . . . Miscellaneous . | . . . . Route ------- -11/Scrapyard -10/Materials (discovered 2 exits: [*Mat] / *Min) -10/Mines (discovered 3 exits: [*Mat x2] / *Sub) -10/Subcaves (discovered 2 exits: [*Mat x2]) History --------- Turn | Location | Event 2 | -11/Scrapyard | Met Revision 17 17 | -11/Scrapyard | Discovered new exit (range 13) 61 | -11/Scrapyard | Entered Materials 316 | -10/Materials | Build established: Mutant 557 | -10/Materials | Discovered new exit (range 8) 624 | -10/Materials | Identified exit to Mines 624 | -10/Materials | Central database locked down 1165 | -10/Materials | Entered Mines 1230 | -10/Mines | Learned Materials emergency access door positions 1233 | -10/Mines | Discovered new exit (range 9) 1274 | -10/Mines | Discovered new exit (range 9) 1282 | -10/Mines | Learned location of Storage (-7) 2080 | -10/Mines | Discovered new exit (range 7) 2099 | -10/Mines | Entered Subcaves 2181 | -10/Subcaves | Learned location of Zion (-6) 2497 | -10/Subcaves | Found SUBCON Basin 2681 | -10/Subcaves | Core integrity fell below 50% 2862 | -10/Subcaves | Discovered new exit (range 14) 2877 | -10/Subcaves | Shifting Twisted Machinery released Battle Cannon 2917 | -10/Subcaves | Discovered new exit (range 13) 3029 | -10/Subcaves | Disturbed a concealed Subdweller 3038 | -10/Subcaves | Core integrity fell below 20% 3059 | -10/Subcaves | Destroyed by Y7-M0V(R) with Subdweller Machine Gun Last Messages --------------- 02707_ Imp. Heat Sink fries itself beyond repair. 02710_ Heat Sink fries itself beyond repair. 02711_ Acquired 24 matter. 02712_ Lgt. Nuclear Core fries itself beyond repair. 02712_ Sml. Laser fries itself beyond repair. 02714_ Ion Engine fries itself beyond repair. 02716_ Aluminum Leg fries itself beyond repair. 02862_ EXIT=FOUND Battle Cannon falls loose from the Twisted Machinery. 02917_ EXIT=FOUND 03029_ UD-C0I(R) angrily emerges from the Twisted Machinery. 03033_ Lgt. Treads destroyed. 03035_ Lgt. Ion Engine destroyed. 03051_ UD-C0I(R) affixes Scrap Shield Fragment to Scrap Shield. 03051_ UD-C0I(R) destroyed. Map ----- +----------------------------------------------------+ | ?????????????????????????### ## | | ?????????????????????????### ### | | ?????????????????????????## ### | | ?????????????????????????## | | ???????????????????######## #### | | ??????????????????######### ########## # | | ??????????????????###""""" ######### # | | ??????????????????##""""" ##???## # | | ??????????????????##""""] ##???## # | | ??????????????????## ##???#### | | ?????????????????### < ###???#### # | | ?????????????????### ####?????"# # | | ?????????????????## #####?? """""" | | ?????????????????## ###?? #"" | | ?????????????????## ##?? ### | | ?????????????????## ##?? #"" " | | ?????????????????## # ###????#""<" | | ?????????????????### ## ###????##""" | | ?????????????????#### ### ###?????##"" | | ??????????????????### ### ##?????##""" | | ?????????????????#### ##? ###?????????" | | ????????????????#### ##? #?????????" | | ??????????????##### ### ??????????? | | ??????????????#### ### ## ??????????? | | ??????????????## ## ## ?????????? | | ??????????# ? # @ R ## ????????? | | ?????????###&%&= ###??????????? | | ?????????##$&<## ##???????????? | | ?????????## $## ### ##???????????? | | ?????????###?### #### ###???????????? | | ?????????????### ##### ####???????????? | | ??????????????## ##?"#### ????????????? | | ??????????????# ##??"## ?????????????? | | ??????????????## ###????????????????????? | | ??????????????## ##????????????????????? | | ??????????????# ???????????????????????? | | ??????????????## ???????????????????????? | | ??????????????## ???????????????????????? | | ??????????????## ???????????????????????? | | ??????????????## ???????????????????????? | | ??????????????# ???????????????????????? | | ?????????????????????????????????????????? | | ?????????????????????????????????????????? | | ?????????????????????????????????????????? | | ?????????????????????????????????????????? | | ?????????????????????????????????????????? | | ?????????????????????????????????????????? | | ?????????????????????????????????????????? | | ?????????????????????????????????????????? | | ?????????????????????????????????????????? | +----------------------------------------------------+ Best States ------------- Heat Dissipation 25 Energy Generation 10 Energy Capacity 250 Matter Stores 300 Matter Capacity 300 Sight Range 16 Terrain Scan Density 10 Core Shielding 20 Evasion (%) 50 Recoil Reduction 2 Item Schematics ----------------- None Robot Schematics ------------------ None Fabricated ------------ Nothing Repaired ---------- Nothing Alien Tech Used ----------------- None Achievements -------------- None Challenges ------------ None Game ------ Seed SmallThrowingActivator Manual? 0 Play Time 00:17:47 Cumulative 36.7 hours Start 2025.06.13 @ 04:24:12 End 2025.06.13 @ 04:42:14 Sessions 1 Manual Loads 0 Difficulty Rogue Special Mode None Game No. 27 Rogue 8 Adventurer 0 Explorer 19 Win Type - Total 0 Types 0/0/0/0/0/0/0/0/0/0 Lore% 38 Gallery% 29 Achievement% 67 Wizard Run 0 Options --------- Layout 1 ASCII 0 Keyboard 0 Movement Mouse Keybinds 0 Fullscreen 2 Font 16/SmallcapsGlow Map View 50x40 Zoom Use 0% Tactical HUD 1 Map Filters NONE Filters NONE Steam SD RUN: 07156c3f-b6d3-4a27-ac86-9eb26d6b7f96